fUST/lending_fUST_20250830
["ID","MTS","AMOUNT","RATE_DAILY","PERIOD"]
[382214403,1756547445590,-480.0,0.00020024,2]
[382214405,1756547445599,-480.0,0.00020024,2]
[382214407,1756547445609,-480.0,0.00020024,2]
[382214409,1756547445618,-480.0,0.00020024,2]
[382214411,1756547445628,-480.0,0.00020024,2]
[382214413,1756547445637,-480.0,0.00020024,2]
[382214415,1756547445652,-480.0,0.00020024,2]
[382214417,1756547445662,-480.0,0.00020024,2]
[382214419,1756547445671,-1000.0,0.00020024,2]
[382214421,1756547445681,-480.0,0.00020024,2]
[382214423,1756547445690,-480.0,0.00020024,2]
[382214425,1756547445700,-480.0,0.00020024,2]
[382214426,1756547445710,-480.0,0.00020024,2]
[382214429,1756547445719,-480.0,0.00020024,2]
[382214431,1756547445730,-480.0,0.00020024,2]
[382214433,1756547445739,-392.33836996,0.00020024,2]
[382214435,1756547445749,-480.0,0.00020024,2]
[382214437,1756547445758,-480.0,0.00020024,2]
[382214439,1756547445767,-480.0,0.00020024,2]
[382214441,1756547445777,-404.79396198,0.00020024,2]
[382214443,1756547445786,-480.0,0.00020024,2]
[382214445,1756547445796,-480.0,0.00020024,2]
[382214447,1756547445805,-480.0,0.00020024,2]
[382214449,1756547445816,-762.48,0.00020024,2]
[382214451,1756547445826,-500.0,0.00020024,2]
[382214453,1756547445836,-480.0,0.00020024,2]
[382214455,1756547445847,-480.0,0.00020024,2]
[382214457,1756547445857,-229.4621104,0.00020024,2]
[382214459,1756547445866,-480.0,0.00020024,2]
[382214461,1756547445876,-480.0,0.00020024,2]
[382214463,1756547445885,-744.19,0.00020024,2]
[382214465,1756547445896,-480.0,0.00020024,2]
[382214467,1756547445905,-480.0,0.00020024,2]
[382214469,1756547445915,-480.0,0.00020024,2]
[382214476,1756547445972,-480.0,0.00020024,2]
[382214478,1756547445981,-480.0,0.00020024,2]
[382214480,1756547445991,-480.0,0.00020024,2]
[382214482,1756547446000,-480.0,0.00020024,2]
[382214484,1756547446009,-480.0,0.00020024,2]
[382214486,1756547446020,-480.0,0.00020024,2]
[382214488,1756547446029,-480.0,0.00020024,2]
[382214490,1756547446039,-480.0,0.00020024,2]
[382214492,1756547446048,-480.0,0.00020024,2]
[382214495,1756547446069,-867.07,0.00020024,2]
[382214497,1756547446079,-480.0,0.00020024,2]
[382214499,1756547446089,-480.0,0.00020024,2]
[382214501,1756547446099,-480.0,0.00020024,2]
[382214503,1756547446109,-480.0,0.00020024,2]
[382214505,1756547446120,-484.78030225,0.00020024,2]
[382214507,1756547446130,-641.38,0.00020024,2]
[382214509,1756547446140,-480.0,0.00020024,2]
[382214511,1756547446152,-483.97603794,0.00020024,2]
[382214513,1756547446162,-480.0,0.00020024,2]
[382214515,1756547446171,-480.0,0.00020024,2]
[382214517,1756547446181,-857.66,0.00020024,2]
[382214520,1756547446191,-847.56,0.00020024,2]
[382214522,1756547446201,-480.0,0.00020024,2]
[382214524,1756547446211,-480.0,0.00020024,2]
[382214526,1756547446222,-480.0,0.00020024,2]
[382214528,1756547446231,-480.0,0.00020024,2]
[382214530,1756547446241,-480.0,0.00020024,2]
[382214532,1756547446250,-480.0,0.00020024,2]
[382214534,1756547446260,-480.0,0.00020024,2]
[382214536,1756547446269,-480.0,0.00020024,2]
[382214538,1756547446279,-1059.2,0.00020024,2]
[382214540,1756547446288,-480.0,0.00020024,2]
[382214542,1756547446300,-151.0,0.00020024,2]
[382214544,1756547446310,-151.0,0.00020024,2]
[382214546,1756547446320,-480.0,0.00020024,2]
[382214548,1756547446330,-151.0,0.00020024,2]
[382214550,1756547446339,-151.0,0.00020024,2]
[382214552,1756547446349,-500.0,0.00020024,2]
[382214554,1756547446359,-500.0,0.00020024,2]
[382214556,1756547446368,-151.0,0.00020024,2]
[382214558,1756547446377,-151.48684361,0.00020024,2]
[382214560,1756547446387,-480.0,0.00020024,2]
[382214562,1756547446400,-241.85192776,0.00020024,2]
[382214564,1756547446412,-151.37198271,0.00020024,2]
[382214566,1756547446422,-151.33823782,0.00020024,2]
[382214568,1756547446432,-480.0,0.00020024,2]
[382214569,1756547446441,-151.77123579,0.00020024,2]
[382214571,1756547446451,-480.0,0.00020024,2]
[382214574,1756547446464,-151.0,0.00020024,2]
[382214576,1756547446475,-480.0,0.00020024,2]
[382214578,1756547446484,-480.0,0.00020024,2]
[382214580,1756547446494,-480.0,0.00020024,2]
[382214582,1756547446503,-480.0,0.00020024,2]
[382214584,1756547446513,-480.0,0.00020024,2]
[382214586,1756547446523,-480.0,0.00020024,2]
[382214587,1756547446532,-480.0,0.00020024,2]
[382214590,1756547446542,-480.0,0.00020024,2]
[382214592,1756547446552,-480.0,0.00020024,2]
[382214594,1756547446562,-780.3,0.00020024,2]
[382214596,1756547446571,-480.0,0.00020024,2]
[382214598,1756547446581,-480.0,0.00020024,2]
[382214600,1756547446591,-480.0,0.00020024,2]
[382214602,1756547446600,-601.77719514,0.00020024,2]
[382214604,1756547446610,-480.0,0.00020024,2]
[382214606,1756547446620,-480.0,0.00020024,2]
[382214608,1756547446629,-480.0,0.00020024,2]
[382214610,1756547446639,-480.0,0.00020024,2]
[382214612,1756547446650,-480.0,0.00020024,2]
[382214614,1756547446660,-480.0,0.00020024,2]
[382214616,1756547446674,-481.76756872,0.00020024,2]
[382214618,1756547446684,-480.0,0.00020024,2]
[382214620,1756547446694,-313.94828745,0.00020024,2]
[382214622,1756547446704,-480.0,0.00020024,2]
[382214624,1756547446713,-480.0,0.00020024,2]
[382214626,1756547446723,-1367.14,0.00020024,2]
[382214628,1756547446732,-480.0,0.00020024,2]
[382214630,1756547446742,-480.79572017,0.00020024,2]
[382214632,1756547446751,-496.09381195,0.00020024,2]
[382214634,1756547446761,-480.0,0.00020024,2]
[382214636,1756547446770,-543.18,0.00020024,2]
[382214638,1756547446779,-500.0,0.00020024,2]
[382214640,1756547446789,-151.19098255,0.00020024,2]
[382214642,1756547446799,-485.72,0.00020024,2]
[382214644,1756547446808,-151.14295432,0.00020024,2]
[382214646,1756547446818,-151.0,0.00020024,2]
[382214648,1756547446828,-151.0,0.00020024,2]
[382214650,1756547446837,-152.89868183,0.00020024,2]
[382214652,1756547446847,-151.0,0.00020024,2]
[382214654,1756547446856,-480.0,0.00020024,2]
[382214656,1756547446866,-480.0,0.00020024,2]
[382214658,1756547446876,-480.0,0.00020024,2]
[382214660,1756547446885,-480.0,0.00020024,2]
[382214662,1756547446896,-480.0,0.00020024,2]
[382214664,1756547446906,-480.0,0.00020024,2]
[382214666,1756547446915,-480.0,0.00020024,2]
[382214668,1756547446926,-480.0,0.00020024,2]
[382214670,1756547446935,-480.0,0.00020024,2]
[382214672,1756547446945,-480.0,0.00020024,2]
[382214674,1756547446955,-151.0,0.00020024,2]
[382214676,1756547446964,-153.34121446,0.00020024,2]
[382214678,1756547446974,-151.0,0.00020024,2]
[382214680,1756547446983,-151.0,0.00020024,2]
[382214682,1756547446993,-151.0,0.00020024,2]
[382214684,1756547447002,-151.0,0.00020024,2]
[382214686,1756547447012,-151.0,0.00020024,2]
[382214688,1756547447021,-151.0,0.00020024,2]
[382214690,1756547447031,-151.36424091,0.00020024,2]
[382214692,1756547447040,-151.0,0.00020024,2]
[382214693,1756547447049,-151.0,0.00020024,2]
[382214695,1756547447059,-151.0,0.00020024,2]
[382214697,1756547447068,-151.15318777,0.00020024,2]
[382214698,1756547447077,-151.0,0.00020024,2]
[382214700,1756547447086,-151.0,0.00020024,2]
[382214702,1756547447095,-151.0,0.00020024,2]
[382214704,1756547447105,-500.0,0.00020026,2]
[382214706,1756547447115,-500.0,0.00020026,2]
[382214708,1756547447124,-500.0,0.00020026,2]
[382214710,1756547447134,-482.09339551,0.00020026,2]
[382214712,1756547447145,-2078.16,0.00020026,2]
[382214714,1756547447154,-2078.16,0.00020026,2]
[382214716,1756547447163,-2078.16,0.00020026,2]
[382214718,1756547447172,-2078.16,0.00020026,2]
[382214720,1756547447182,-2078.16,0.00020026,2]
[382214722,1756547447191,-2078.16,0.00020026,2]
[382214724,1756547447201,-2078.16,0.00020026,2]
[382214726,1756547447210,-2078.16,0.00020026,2]
[382214728,1756547447220,-2078.16,0.00020026,2]
[382214730,1756547447230,-2078.16,0.00020026,2]
[382214732,1756547447239,-2078.16,0.00020026,2]
[382214734,1756547447249,-2078.16,0.00020026,2]
[382214736,1756547447259,-2078.16,0.00020026,2]
[382214738,1756547447269,-2078.16,0.00020026,2]
[382214740,1756547447278,-2078.16,0.00020026,2]
[382214742,1756547447287,-2078.16,0.00020026,2]
[382214744,1756547447302,-2078.37531108,0.00020026,2]
[382214746,1756547447312,-500.0,0.00020073,2]
[382214748,1756547447322,-222.72368656,0.00020073,2]
[382214750,1756547447332,-351.0219958,0.00020073,2]
[382214752,1756547447346,-502.64486148,0.00020073,2]
[382214754,1756547447355,-500.0,0.00020073,2]
[382214756,1756547447364,-509.07670686,0.00020073,2]
[382214758,1756547447374,-501.03306989,0.00020073,2]
[382214760,1756547447383,-500.0,0.00020073,2]
[382214762,1756547447394,-520.39784858,0.00020073,2]
[382214764,1756547447405,-288.72465995,0.00020073,2]
[382214766,1756547447419,-500.0,0.00020073,2]
[382214768,1756547447429,-518.55572137,0.00020073,2]
[382214770,1756547447440,-500.0,0.00020073,2]
[382214772,1756547447451,-500.0,0.00020073,2]
[382214774,1756547447460,-500.0,0.00020073,2]
[382214776,1756547447471,-500.0,0.00020073,2]
[382214778,1756547447480,-500.0,0.00020073,2]
[382214780,1756547447492,-367.51569067,0.00020073,2]
[382214782,1756547447502,-262.0,0.00020073,2]
[382214784,1756547447512,-500.0,0.00020073,2]
[382214786,1756547447522,-502.19167378,0.00020073,2]
[382214788,1756547447535,-500.0,0.00020073,2]
[382214790,1756547447545,-500.0,0.00020073,2]
[382214792,1756547447555,-500.0,0.00020073,2]
[382214794,1756547447564,-500.0,0.00020073,2]
[382214796,1756547447575,-500.0,0.00020073,2]
[382214798,1756547447584,-500.0,0.00020073,2]
[382214800,1756547447595,-502.65984623,0.00020073,2]
[382214802,1756547447605,-2618.2481025,0.00020073,2]
[382214804,1756547447614,-1033.99,0.00020091,2]
[382214806,1756547447624,-480.0,0.00020092,2]
[382214808,1756547447634,-480.0,0.00020092,2]
[382214810,1756547447644,-480.0,0.00020092,2]
[382214812,1756547447655,-576.58,0.00020092,2]
[382214814,1756547447664,-480.0,0.00020092,2]
[382214816,1756547447674,-480.0,0.00020092,2]
[382214818,1756547447683,-480.0,0.00020092,2]
[382214820,1756547447693,-1403.9,0.00020092,2]
[382214822,1756547447703,-480.0,0.00020092,2]
[382214824,1756547447714,-480.0,0.00020092,2]
[382214826,1756547447724,-480.0,0.00020092,2]
[382214828,1756547447734,-480.0,0.00020092,2]
[382214830,1756547447744,-480.0,0.00020092,2]
[382214832,1756547447754,-480.0,0.00020092,2]
[382214834,1756547447764,-559.92,0.00020092,2]
[382214836,1756547447774,-480.0,0.00020092,2]
[382214838,1756547447784,-480.0,0.00020092,2]
[382214840,1756547447793,-480.0,0.00020092,2]
[382214842,1756547447803,-480.0,0.00020092,2]
[382214844,1756547447813,-480.0,0.00020092,2]
[382214846,1756547447823,-480.0,0.00020092,2]
[382214849,1756547447833,-480.0,0.00020092,2]
[382214850,1756547447843,-480.0,0.00020092,2]
[382214853,1756547447853,-915.72,0.00020092,2]
[382214855,1756547447863,-482.11096034,0.00020092,2]
[382214857,1756547447873,-593.37,0.00020092,2]
[382214859,1756547447883,-480.0,0.00020092,2]
[382214861,1756547447893,-480.0,0.00020092,2]
[382214863,1756547447906,-480.0,0.00020092,2]
[382214865,1756547447915,-470.59346364,0.00020092,2]
[382214867,1756547447925,-480.0,0.00020092,2]
[382214869,1756547447934,-480.0,0.00020092,2]
[382214871,1756547447944,-480.0,0.00020092,2]
[382214873,1756547447954,-480.0,0.00020092,2]
[382214875,1756547447963,-651.68,0.00020092,2]
[382214877,1756547447973,-480.0,0.00020092,2]
[382214879,1756547447983,-480.0,0.00020092,2]
[382214881,1756547447993,-480.0,0.00020092,2]
[382214883,1756547448002,-750.49,0.00020092,2]
[382214885,1756547448012,-644.24,0.00020092,2]
[382214887,1756547448022,-480.0,0.00020092,2]
[382214889,1756547448032,-1024.12,0.00020092,2]
[382214891,1756547448042,-828.39,0.00020092,2]
[382214893,1756547448053,-480.0,0.00020092,2]
[382214895,1756547448063,-1072.92,0.00020092,2]
[382214897,1756547448073,-1116.58,0.00020092,2]
[382214899,1756547448083,-589.28,0.00020092,2]
[382214901,1756547448093,-480.0,0.00020092,2]
[382214903,1756547448103,-2065.61,0.00020092,2]
[382214905,1756547448113,-1011.58,0.00020092,2]
[382214907,1756547448123,-1010.17,0.00020092,2]
[382214909,1756547448133,-379.07152701,0.00020092,2]
[382214911,1756547448143,-480.0,0.00020092,2]
[382214913,1756547448155,-2152.22,0.00020092,2]
[382214915,1756547448166,-480.0,0.00020092,2]
[382214917,1756547448176,-480.0,0.00020092,2]
[382214919,1756547448186,-480.0,0.00020092,2]
[382214921,1756547448197,-480.0,0.00020092,2]
[382214923,1756547448206,-2935.34,0.00020092,2]
[382214925,1756547448217,-480.0,0.00020092,2]
[382214927,1756547448226,-480.0,0.00020093,2]
[382214929,1756547448237,-480.0,0.00020093,2]
[382214931,1756547448246,-480.0,0.00020093,2]
[382214933,1756547448256,-480.0,0.00020093,2]
[382214935,1756547448267,-480.0,0.00020093,2]
[382214938,1756547448279,-1160.86,0.00020093,2]
[382214940,1756547448290,-480.0,0.00020093,2]
[382214942,1756547448301,-639.94,0.00020093,2]
[382214944,1756547448312,-480.0,0.00020093,2]
[382214946,1756547448325,-480.0,0.00020093,2]
[382214948,1756547448335,-1030.48,0.00020093,2]
[382214950,1756547448345,-918.97,0.00020093,2]
[382214952,1756547448355,-893.14,0.00020093,2]
[382214954,1756547448366,-480.0,0.00020093,2]
[382214956,1756547448376,-1347.63430463,0.00020093,2]
[382214987,1756547448684,-30.02569537,0.00020093,2]
[382214989,1756547448694,-480.0,0.00020093,2]
[382214991,1756547448705,-1515.49,0.00020093,2]
[382214993,1756547448715,-480.0,0.00020093,2]
[382214995,1756547448726,-1199.76,0.00020093,2]
[382214997,1756547448736,-1047.79,0.00020093,2]
[382214999,1756547448745,-1028.65,0.00020093,2]
[382215001,1756547448755,-480.0,0.00020093,2]
[382215003,1756547448765,-1550.6,0.00020093,2]
[382215005,1756547448774,-667.05,0.00020093,2]
[382215007,1756547448784,-480.0,0.00020093,2]
[382215009,1756547448793,-510.95,0.00020093,2]
[382215011,1756547448803,-1029.39,0.00020093,2]
[382215013,1756547448813,-1008.6,0.00020093,2]
[382215015,1756547448823,-480.0,0.00020093,2]
[382215017,1756547448833,-943.97,0.00020093,2]
[382215019,1756547448842,-538.45,0.00020093,2]
[382215021,1756547448853,-1151.22,0.00020093,2]
[382215023,1756547448864,-1160.51,0.00020093,2]
[382215025,1756547448874,-531.39,0.00020093,2]
[382215027,1756547448884,-480.0,0.00020093,2]
[382215029,1756547448894,-1138.2,0.00020093,2]
[382215031,1756547448906,-480.0,0.00020093,2]
[382215033,1756547448915,-151.0,0.000201,3]
[382215035,1756547448926,-480.0,0.00020127,2]
[382215036,1756547448936,-480.0,0.00020127,2]
[382215038,1756547448946,-503.28,0.00020127,2]
[382215040,1756547448956,-807.84,0.00020127,2]
[382215042,1756547448967,-1020.98,0.00020127,2]
[382215044,1756547448977,-480.0,0.00020127,2]
[382215046,1756547448986,-1181.51,0.00020127,2]
[382215048,1756547448997,-480.0,0.00020127,2]
[382215050,1756547449007,-480.0,0.00020127,2]
[382215052,1756547449017,-480.0,0.00020127,2]
[382215054,1756547449028,-480.0,0.00020127,2]
[382215056,1756547449040,-480.0,0.00020127,2]
[382215058,1756547449050,-480.0,0.00020127,2]
[382215060,1756547449060,-480.0,0.00020127,2]
[382215061,1756547449070,-166.147107,0.00020127,2]
[382215063,1756547449080,-151.0,0.00020127,2]
[382215066,1756547449091,-2715.12328229,0.00020128,2]
[382215067,1756547449102,-2815.58284374,0.00020183,2]
[382215069,1756547449113,-151.0,0.00020187,2]
[382215071,1756547449123,-151.0,0.00020187,2]
[382215073,1756547449134,-151.0,0.00020187,2]
[382215075,1756547449145,-183.220688,0.00020187,2]
[382215077,1756547449156,-247.754289,0.00020187,2]
[382215080,1756547449168,-1178.14,0.0002019,2]
[382215082,1756547449178,-480.0,0.0002019,2]
[382215083,1756547449187,-480.0,0.0002019,2]
[382215085,1756547449198,-759.57,0.0002019,2]
[382215087,1756547449208,-480.0,0.0002019,2]
[382215089,1756547449218,-684.42,0.0002019,2]
[382215091,1756547449229,-666.48,0.0002019,2]
[382215093,1756547449239,-1317.0,0.0002019,2]
[382215095,1756547449249,-1064.7,0.0002019,2]
[382215098,1756547449260,-995.44,0.0002019,2]
[382215100,1756547449271,-286.68844494,0.0002019,2]
[382215119,1756547449460,-224.2918843,0.0002019,2]
[382215121,1756547449469,-490.33,0.0002019,2]
[382215123,1756547449479,-480.0,0.0002019,2]
[382215125,1756547449488,-482.39527012,0.0002019,2]
[382215127,1756547449497,-605.38,0.0002019,2]
[382215129,1756547449507,-1003.86,0.0002019,2]
[382215131,1756547449516,-374.54756531,0.0002019,2]
[382215133,1756547449526,-480.0,0.0002019,2]
[382215135,1756547449535,-480.0,0.0002019,2]
[382215137,1756547449544,-1148.5,0.0002019,2]
[382215139,1756547449553,-481.00032018,0.0002019,2]
[382215141,1756547449563,-1031.48,0.0002019,2]
[382215143,1756547449572,-480.0,0.0002019,2]
[382215145,1756547449581,-480.0,0.0002019,2]
[382215147,1756547449590,-480.0,0.0002019,2]
[382215149,1756547449599,-480.0,0.0002019,2]
[382215151,1756547449608,-480.0,0.0002019,2]
[382215153,1756547449617,-249.46633575,0.0002019,2]
[382215154,1756547449627,-524.95,0.0002019,2]
[382215156,1756547449636,-480.0,0.0002019,2]
[382215158,1756547449645,-497.63,0.0002019,2]
[382215160,1756547449656,-954.79,0.0002019,2]
[382215162,1756547449665,-480.0,0.0002019,2]
[382215164,1756547449675,-610.9,0.0002019,2]
[382215166,1756547449685,-200.0,0.00020191,2]
[382215169,1756547449699,-151.0,0.00020191,2]
[382215171,1756547449709,-151.0,0.00020191,2]
[382215172,1756547449719,-151.0,0.00020191,2]
[382215174,1756547449729,-151.361299,0.00020191,2]
[382215176,1756547449739,-961.74,0.00020191,2]
[382215178,1756547449748,-1069.28,0.00020191,2]
[382215180,1756547449758,-549.49,0.00020191,2]
[382215182,1756547449768,-480.0,0.00020191,2]
[382215184,1756547449778,-480.0,0.00020191,2]
[382215186,1756547449787,-1088.12,0.00020191,2]
[382215188,1756547449797,-1230.24,0.00020191,2]
[382215190,1756547449807,-480.0,0.00020191,2]
[382215192,1756547449817,-4570.71,0.00020191,2]
[382215194,1756547449827,-1024.33,0.00020191,2]
[382215196,1756547449837,-1764.82,0.00020191,2]
[382215198,1756547449847,-6320.35,0.00020191,2]
[382215200,1756547449858,-480.0,0.00020191,2]
[382215202,1756547449868,-1264.53,0.00020191,2]
[382215204,1756547449878,-480.0,0.00020191,2]
[382215206,1756547449888,-5443.68,0.00020191,2]
[382215207,1756547449898,-5552.61,0.00020191,2]
[382215209,1756547449908,-2302.0,0.00020191,2]
[382215211,1756547449918,-662.47,0.00020191,2]
[382215213,1756547449929,-524.74621551,0.00020191,2]
[382215215,1756547449939,-1072.92,0.00020191,2]
[382215217,1756547449950,-151.644077,0.00020193,2]
[382215219,1756547449960,-152.40833,0.00020193,2]
[382215221,1756547449971,-480.0,0.00020193,2]
[382215223,1756547449981,-480.0,0.00020193,2]
[382215225,1756547449991,-480.0,0.00020193,2]
[382215227,1756547450001,-480.0,0.00020193,2]
[382215229,1756547450012,-1129.8,0.00020193,2]
[382215231,1756547450022,-1298.54,0.00020193,2]
[382215233,1756547450032,-480.0,0.00020193,2]
[382215235,1756547450043,-1059.55,0.00020193,2]
[382215237,1756547450053,-1267.58,0.00020193,2]
[382215239,1756547450063,-794.53,0.00020193,2]
[382215241,1756547450073,-1209.14,0.00020193,2]
[382215243,1756547450084,-480.0,0.00020193,2]
[382215245,1756547450094,-1466.93,0.00020193,2]
[382215247,1756547450104,-480.0,0.00020193,2]
[382215249,1756547450114,-870.24,0.00020193,2]
[382215251,1756547450125,-480.0,0.00020193,2]
[382215253,1756547450135,-1158.42,0.00020193,2]
[382215255,1756547450145,-1195.83,0.00020193,2]
[382215257,1756547450156,-3998.72,0.00020193,2]
[382215259,1756547450167,-1003.52,0.00020193,2]
[382215261,1756547450178,-1283.29,0.00020193,2]
[382215263,1756547450188,-480.0,0.00020193,2]
[382215265,1756547450198,-480.0,0.00020193,2]
[382215267,1756547450208,-816.65,0.00020193,2]
[382215269,1756547450218,-3113.25,0.00020193,2]
[382215271,1756547450228,-1551.31,0.00020193,2]
[382215273,1756547450238,-1933.67,0.00020193,2]
[382215275,1756547450248,-989.76,0.00020193,2]
[382215277,1756547450258,-480.0,0.00020193,2]
[382215279,1756547450267,-480.0,0.00020193,2]
[382215281,1756547450278,-300.0,0.00020213,20]
[382215283,1756547450288,-300.0,0.00020213,20]
[382215285,1756547450299,-300.0,0.00020213,20]
[382215287,1756547450308,-300.0,0.00020213,20]
[382215289,1756547450319,-300.0,0.00020213,20]
[382215291,1756547450328,-300.0,0.00020213,20]
[382215293,1756547450338,-300.0,0.00020213,20]
[382215294,1756547450348,-300.0,0.00020213,20]
[382215296,1756547450358,-300.0,0.00020213,20]
[382215298,1756547450367,-300.0,0.00020213,20]
[382215300,1756547450379,-300.0,0.00020213,20]
[382215302,1756547450389,-300.0,0.00020213,20]
[382215304,1756547450398,-300.0,0.00020213,20]
[382215306,1756547450409,-300.0,0.00020213,20]
[382215308,1756547450423,-300.0,0.00020213,20]
[382215310,1756547450433,-151.0,0.0002022,2]
[382215312,1756547450443,-291.131205,0.0002022,2]
[382215314,1756547450454,-291.131205,0.0002022,2]
[382215316,1756547450463,-291.131205,0.0002022,2]
[382215318,1756547450473,-291.131205,0.0002022,2]
[382215320,1756547450483,-1905.04021966,0.00020222,2]
[382215322,1756547450493,-10813.6590147,0.00020222,2]
[382215324,1756547450502,-32440.977044,0.00020222,2]
[382215326,1756547450512,-480.0,0.00020227,2]
[382215328,1756547450521,-480.0,0.00020227,2]
[382215330,1756547450531,-480.0,0.00020227,2]
[382215331,1756547450540,-480.0,0.00020227,2]
[382215333,1756547450549,-480.0,0.00020227,2]
[382215335,1756547450559,-480.0,0.00020227,2]
[382215337,1756547450568,-480.0,0.00020227,2]
[382215339,1756547450577,-483.47,0.00020227,2]
[382215341,1756547450587,-480.0,0.00020227,2]
[382215343,1756547450597,-480.0,0.00020227,2]
[382215345,1756547450607,-480.0,0.00020227,2]
[382215347,1756547450616,-2919.75940895,0.00020238,2]
[382215349,1756547450626,-500.0,0.00020273,2]
[382215351,1756547450635,-500.0,0.00020273,2]
[382215353,1756547450646,-500.0,0.00020273,2]
[382215355,1756547450656,-500.0,0.00020273,2]
[382215357,1756547450666,-500.0,0.00020273,2]
[382215359,1756547450675,-500.0,0.00020273,2]
[382215361,1756547450685,-500.0,0.00020273,2]
[382215363,1756547450695,-500.0,0.00020273,2]
[382215364,1756547450705,-500.0,0.00020273,2]
[382215365,1756547450714,-500.0,0.00020273,2]
[382215366,1756547450723,-500.0,0.00020273,2]
[382215367,1756547450732,-500.0,0.00020273,2]
[382215368,1756547450741,-500.0,0.00020273,2]
[382215369,1756547450751,-500.84524801,0.00020273,2]
[382215370,1756547450760,-500.11135516,0.00020273,2]
[382215371,1756547450769,-501.27558114,0.00020273,2]
[382215372,1756547450779,-500.0,0.00020273,2]
[382215373,1756547450788,-500.0,0.00020273,2]
[382215374,1756547450797,-500.0,0.00020273,2]
[382215375,1756547450806,-480.0,0.00020287,2]
[382215376,1756547450815,-480.0,0.00020287,2]
[382215377,1756547450824,-480.0,0.00020287,2]
[382215378,1756547450833,-480.0,0.00020287,2]
[382215379,1756547450843,-480.0,0.00020287,2]
[382215380,1756547450852,-480.0,0.00020287,2]
[382215381,1756547450862,-480.0,0.00020287,2]
[382215382,1756547450872,-341.08566038,0.00020287,2]
[382215383,1756547450882,-480.0,0.00020287,2]
[382215384,1756547450891,-1139.15,0.00020287,2]
[382215385,1756547450901,-480.0,0.00020287,2]
[382215386,1756547450910,-480.0,0.00020287,2]
[382215387,1756547450920,-480.0,0.00020287,2]
[382215388,1756547450929,-480.0,0.00020287,2]
[382215389,1756547450939,-480.0,0.00020287,2]
[382215390,1756547450948,-480.0,0.00020287,2]
[382215391,1756547450958,-480.0,0.00020287,2]
[382215392,1756547450967,-480.0,0.00020287,2]
[382215393,1756547450977,-480.0,0.00020287,2]
[382215394,1756547450987,-484.60290176,0.00020287,2]
[382215395,1756547450996,-480.0,0.00020287,2]
[382215396,1756547451005,-480.0,0.00020287,2]
[382215397,1756547451015,-480.0,0.00020287,2]
[382215399,1756547451024,-480.0,0.00020287,2]
[382215401,1756547451033,-480.0,0.00020287,2]
[382215403,1756547451043,-480.0,0.00020287,2]
[382215405,1756547451053,-480.0,0.00020287,2]
[382215407,1756547451062,-552.47,0.00020287,2]
[382215409,1756547451072,-480.0,0.00020287,2]
[382215411,1756547451082,-480.0,0.00020287,2]
[382215413,1756547451091,-861.24,0.00020287,2]
[382215415,1756547451101,-480.0,0.00020287,2]